Cogmind - Beta 14 @@@ ROGUE MODE // 2024.08.27 @ 21:16:23 Player: THN-L0C Result: Destroyed by XQ-QJ9(R) with Subdweller Laser Performance ------------- Evolutions (0) 0 Regions Visited (3) 600 Robots Destroyed (20) 100 Value Destroyed (649) 649 Prototype IDs (5) 100 Alien Tech Used (0) 0 Bonus (155) 155 TOTAL SCORE: 1604 Bonus ------- Follower Combat Kills 155 Cogmind --------- Core Integrity 0/250 Matter 205/300 Energy 159/160 System Corruption 0% Temperature Cool (6) Movement Rolling (120) Ox1 Location -10/Subcaves Parts ------- > --- POWER (1) -------- Light Nuclear Core > --- PROPULSION (2) --- Light Treads Subdweller Monowheel > --- UTILITY (2) ------ Large Storage Unit Makeshift Light Armor Plating > --- WEAPON (2) ------- Mini Grenade Launcher Hammer > --- INVENTORY (15) --- Subdweller Power Source High-capacity Matter Pod (200) Structural Scanner Signal Interpreter Seismic Detector Scrap Shield Barrage Gun Barrage Gun Barrage Gun Heavy Battle Rifle Battle Cannon Mini Grenade Launcher Multitool Peak State ------------ > --- POWER ------------ Ion Engine > --- PROPULSION ------- Light Treads Light Treads > --- UTILITY ---------- Large Storage Unit Makeshift Light Armor Plating > --- WEAPON ----------- Heavy Battle Rifle Battle Cannon > --- INVENTORY -------- Light Nuclear Core Subdweller Monowheel High-capacity Matter Pod Structural Scanner Signal Interpreter Seismic Detector Scrap Shield Subdweller Laser Autogun Autogun Battle Rifle Mini Grenade Launcher Mini Grenade Launcher Hammer [Rating: 16] Favorites ----------- Power Ion Engine Engine Ion Engine Power Core Light Nuclear Core Propulsion Light Treads Treads Light Treads Wheel Subdweller Monowheel Utility Large Storage Unit Device Seismic Detector Storage Large Storage Unit Processor Targeting Computer Protection Makeshift Light Armor Plating Weapon Autogun Ballistic Gun Autogun Ballistic Cannon Battle Cannon Launcher Mini Grenade Launcher Special Weapon Mining Laser Impact Weapon Hammer Build | -11 -10 -10 -10 ------- Run | Yrd Mat Min Sub Slots Evolved . | . . . . Power . | . . . . Propulsion . | . . . . Utility . | . . . . Weapon . | . . . . Parts Attached 41 | 7 12 1 21 Power 5 | 1 2 . 2 Engine 4 | 1 2 . 1 Core 1 | . . . 1 Reactor . | . . . . Propulsion 6 | 2 3 . 1 Treads 5 | 2 3 . . Leg . | . . . . Wheel 1 | . . . 1 Hover . | . . . . Flight . | . . . . Utility 14 | 2 3 . 9 Device 6 | 1 . . 5 Storage 3 | 1 2 . . Processor 1 | . 1 . . Hackware . | . . . . Protection 4 | . . . 4 Artifact . | . . . . Weapon 16 | 2 4 1 9 Energy Gun . | . . . . Energy Cannon . | . . . . Ballistic Gun 7 | 2 3 . 2 Ballistic Cannon 1 | . . . 1 Launcher 3 | . . . 3 Special Weapon 1 | . 1 . . Impact Weapon 4 | . . 1 3 Slashing Weapon . | . . . . Piercing Weapon . | . . . . Special Melee Weapon . | . . . . Unidentified Prototypes . | . . . . Parts Lost 2 | . . . 2 Power 1 | . . . 1 Propulsion 1 | . . . 1 Utility . | . . . . Weapon . | . . . . Highest Loss Streak 2 | . . . 2 To Critical Strikes . | . . . . Average Slot Usage (%) 99 | . 100 100 99 Engine 12 | . 14 14 11 Core 1 | . . . 2 Treads 26 | . 28 28 25 Wheel 1 | . . . 2 Device 5 | . 1 . 11 Storage 14 | . 14 14 14 Processor 7 | . 12 14 . Protection 1 | . . . 2 Ballistic Gun 17 | . 27 27 4 Launcher 6 | . . . 14 Impact Weapon 4 | . . . 8 Peak Build Rating 16 | 7 10 11 16 Average Rating 10 | 5 9 10 11 On Entrance 6 | . 7 10 10 Naked Turns . | . . . . Heaviest Build 91 | 13 91 31 36 Greatest Support 40 | 40 40 40 40 Greatest Overweight (x) 2 | . 2 . 1 Average Overweight (x) . | . . . . Largest Inventory Capacity 25 | 8 25 15 15 Average Capacity 14 | 6 13 15 15 Most Carried 15 | 1 11 14 15 Average Carried 11 | . 7 12 13 Final Capacity 15 | 8 15 15 15 Final Carried 14 | 1 11 13 14 Class Distribution -------------------- 100% | Mutant Dominant Class ---------------- Mutant | -10/Materials Mutant | -10/Mines Mutant | -10/Subcaves Resources | -11 -10 -10 -10 ----------- Run | Yrd Mat Min Sub Matter Collected 1117 | 270 271 184 392 Remotely . | . . . . Salvage Created 594 | 30 370 36 158 Parts 41 | 3 24 2 12 Haulers Intercepted . | . . . . Recyclers Shooed 1 | . 1 . . Parts Field Recycled . | . . . . Retrieved Matter . | . . . . Parts Self-Destructed 2 | . . . 2 Prevented . | . . . . Kills | -11 -10 -10 -10 ------- Run | Yrd Mat Min Sub Combat Hostiles Destroyed 19 | . 11 1 7 Guns 12 | . 11 1 . AOE 7 | . . . 7 Classes Destroyed 4 | 1 2 . 1 Tunneler 1 | 1 . . . Swarmer 3 | . 3 . . Grunt 9 | . 8 1 . Subdweller 7 | . . . 7 Best Kill Streak 6 | 1 6 1 2 Combat Bots Only 6 | . 6 1 2 Max Kills in Single Turn 2 | 1 2 1 1 Gunslinging 1 | . 1 . . Exploded 1 | . . . 1 Melee . | . . . . Uniques/NPCs Destroyed . | . . . . Combat | -11 -10 -10 -10 -------- Run | Yrd Mat Min Sub Hostile Shots Fired 96 | . 61 9 26 Missed 30 | . 17 4 9 Damage Taken 1135 | . 521 69 545 Core 261 | . 75 14 172 Absorbed by Shields . | . . . . Core Remaining (%) 100 | 100 . . . Volleys Fired 54 | 1 30 5 18 Largest 2 | 2 2 2 2 Hottest 100 | 40 100 46 72 Shots Fired 94 | 2 59 10 23 Gun 73 | 2 58 10 3 Cannon 3 | . . . 3 Launcher 17 | . . . 17 Special 1 | . 1 . . Kinetic 76 | 2 58 10 6 Thermal 1 | . 1 . . Explosive 17 | . . . 17 Electromagnetic . | . . . . Robot Hit Streak 17 | 1 17 5 6 Robot Miss Streak 2 | . 2 1 2 Penetration Max . | . . . . Secondary Targets 3 | . 2 1 . Max Gunslinging Chain 1 | . 1 1 . Shots Hit Robots 61 | 1 42 8 10 Core Hits 40 | 1 19 2 18 Critical Kills 1 | . . 1 . Critical Parts Destroyed . | . . . . Critical Strikes 1 | . . 1 . Destroy 1 | . . 1 . Melee Attacks 13 | . . 4 9 Impact 13 | . . 4 9 Slashing . | . . . . Piercing . | . . . . Sneak Attacks . | . . . . Combat Hostiles . | . . . . Follow-up Attacks . | . . . . Damage Inflicted 1619 | 10 586 122 901 Guns 755 | 10 575 122 48 Cannons 24 | . . . 24 Explosions 829 | . . . 829 Melee . | . . . . Ramming 11 | . 11 . . Kinetic 779 | 10 575 122 72 Thermal . | . . . . Explosive 829 | . . . 829 Electromagnetic . | . . . . Impact . | . . . . Slashing . | . . . . Piercing . | . . . . Highest Corruption . | . . . . Average Corruption . | . . . . Corruption Purged . | . . . . Corruption Blocked . | . . . . Overload Shots . | . . . . Overflow Damage 1 | . . . 1 Projectiles . | . . . . Explosions 1 | . . . 1 Melee . | . . . . Knockbacks . | . . . . Impact . | . . . . Kinetic . | . . . . Secondary . | . . . . Self-Inflicted Damage 23 | . . . 23 Shots 1 | . . . 1 Rammed 2 | . 2 . . Targets Rammed 2 | . 2 . . Kicked . | . . . . Crushed . | . . . . Highest Temperature 54 | . 54 15 . Average Temperature 14 | . 15 7 . Received Heat Transfer 444 | . 285 42 117 Siege Activations . | . . . . Robots Corrupted . | . . . . Combat Hostiles . | . . . . Parts Fried . | . . . . Impact Corruptions . | . . . . Robots Melted . | . . . . Combat Hostiles . | . . . . Parts Melted . | . . . . Heat Transferred . | . . . . Parts Sabotaged . | . . . . Parts Stolen . | . . . . Parts Stripped . | . . . . Power Chain Reactions . | . . . . Alert | -11 -10 -10 -10 ------- Run | Yrd Mat Min Sub Peak Influence 250 | 5 250 116 . Initial 3 | . 3 . . Average 72 | 2 98 34 . Maximum Alert Level 1 | . 1 . . Low Security (%) 96 | 100 94 100 . Level 1 3 | . 5 . . Level 2 . | . . . . Level 3 . | . . . . Level 4 . | . . . . Level 5 . | . . . . High Security . | . . . . Max Security . | . . . . Squads Dispatched 3 | . 3 . . Investigation 2 | . 2 . . Extermination . | . . . . Reinforcement 1 | . 1 . . Assault . | . . . . Garrison . | . . . . Intercept . | . . . . Searches Triggered . | . . . . Construction Impeded . | . . . . Haulers Reinforced . | . . . . Active Scanning Responses . | . . . . Cargo Convoy Interrupts . | . . . . Stealth | -11 -10 -10 -10 --------- Run | Yrd Mat Min Sub Distress Signals 1 | . 1 . . Communications Jammed . | . . . . Distress Signals . | . . . . Times Spotted 36 | . 22 4 10 Peak Tracking Total 8 | . 8 2 2 Tactical Retreats 3 | . 3 . . Traps | -11 -10 -10 -10 ------- Run | Yrd Mat Min Sub Traps Triggered 2 | . 1 . 1 Indirectly . | . . . . Trap Hack Attempts . | . . . . Triggered . | . . . . Disarmed . | . . . . Reprogrammed . | . . . . Reused . | . . . . Traps Extracted . | . . . . Installed . | . . . . Triggered . | . . . . Machines | -11 -10 -10 -10 ---------- Run | Yrd Mat Min Sub Machines Disabled . | . . . . Max in Single Turn . | . . . . Machines Repaired . | . . . . Machines Dismantled . | . . . . Machines Sabotaged . | . . . . Overloaded Fab Kills . | . . . . Hacking | -11 -10 -10 -10 --------- Run | Yrd Mat Min Sub Machines Accessed 10 | . 9 . 1 Terminals 7 | . 7 . . Fabricators . | . . . . Repair Stations . | . . . . Recycling Units 2 | . 2 . . Scanalyzers . | . . . . Garrison Access . | . . . . Total Hacks 36 | . 32 . 4 Successful 24 | . 20 . 4 Failed 11 | . 11 . . Catastrophic 2 | . 2 . . Database Lockouts 1 | . 1 . . Manual 15 | . 15 . . Terminals 27 | . 27 . . Fabricators . | . . . . Repair Stations . | . . . . Recycling Units 5 | . 5 . . Scanalyzers . | . . . . Garrison Access . | . . . . Terminal Hacks 11 | . 7 . 4 Record 4 | . . . 4 Robot Analysis 1 | . 1 . . Prototype ID Bank 3 | . 3 . . Unreport Threat 1 | . 1 . . Recall Investigation 1 | . 1 . . Registered Components 1 | . 1 . . Fabricator Hacks . | . . . . Repair Station Hacks . | . . . . Recycling Unit Hacks 3 | . 3 . . Report Inventory 2 | . 2 . . Retrieve Components 1 | . 1 . . Scanalyzer . | . . . . Garrison Access Hacks . | . . . . Unauthorized Hacks 10 | . 10 . . Terminals 10 | . 10 . . Botnet 4 | . 4 . . Operators 1 | . 1 . . Skim 5 | . 5 . . Fabricators . | . . . . Repair Stations . | . . . . Recycling Units . | . . . . Scanalyzers . | . . . . Garrison Access . | . . . . Data Cores Recovered . | . . . . Used . | . . . . Hacking Detections 8 | . 8 . . Full Trace Events 2 | . 2 . . Feedback Events . | . . . . Feedback Blocked . | . . . . Robot Schematics Acquired . | . . . . Robots Built . | . . . . Authchips . | . . . . Time . | . . . . Total Robot Build Rating . | . . . . Part Schematics Acquired . | . . . . Parts Built . | . . . . Authchips . | . . . . Time . | . . . . Total Part Build Rating . | . . . . Parts Repaired . | . . . . Time . | . . . . Parts Recycled . | . . . . Recycled Matter . | . . . . Retrieved Matter . | . . . . Retrieved Components 3 | . 3 . . Parts Scanalyzed . | . . . . Part Schematics Acquired . | . . . . Parts Damaged . | . . . . Bothacking | -11 -10 -10 -10 ------------ Run | Yrd Mat Min Sub Used RIF Installer . | . . . . Robots Hacked . | . . . . Non-combat . | . . . . Combat . | . . . . Robot Hacks Applied . | . . . . Relay Couplers Released . | . . . . Fabnet Peak Effective % . | . . . . Robots Rewired . | . . . . Allies Hacked . | . . . . Hacks Repelled . | . . . . Allies | -11 -10 -10 -10 -------- Run | Yrd Mat Min Sub Total Allies 3 | . . 3 . Largest Group 3 | . . 3 3 Highest-Rated Group 40 | . . 40 40 Highest-Rated Ally 16 | . . 16 16 Total Orders . | . . . . Ally Attacks 31 | . . 16 15 Total Damage 363 | . . 175 188 Kills 5 | . . 3 2 Allies Corrupted 1 | . . . 1 Allies Melted . | . . . . Intel | -11 -10 -10 -10 ------- Run | Yrd Mat Min Sub Robot Analysis Total 1 | . 1 . . Derelict Logs Recovered 3 | . . 1 2 Drone Launches . | . . . . Drone Recoveries . | . . . . Exploration | -11 -10 -10 -10 ------------- Run | Yrd Mat Min Sub Turns Passed 3741 | 78 1259 733 1671 Spaces Moved 2042 | 42 585 434 981 Core 3 | 3 . . . Treads 1815 | 39 585 434 757 Legs . | . . . . Wheels 224 | . . . 224 Hover . | . . . . Flight . | . . . . Fastest Speed 50 | 50 160 160 120 Average Speed 164 | 152 192 160 150 Slowest Speed 320 | 160 320 160 160 Overloaded Moves . | . . . . Propulsion Burnouts . | . . . . Robots Hopped . | . . . . Cave-ins Triggered . | . . . . Exploration Rate (%) 61 | 5 83 98 58 Regions Visited 3 Branch Regions 2 Pre-discovered Areas 3 | . 1 . 2 Known Exits Taken 1 | . . 1 . Unknown Exits Taken 2 | 1 1 . . Scrap Searched 6 | . . 1 5 Spaces Dug 1 | . 1 . . Terrain Destroyed 81 | . 1 . 80 Melee . | . . . . Projectile 1 | . 1 . . AOE 80 | . . . 80 Terrain Rammed . | . . . . Walls Destroyed . | . . . . Machines Disabled . | . . . . Actions | -11 -10 -10 -10 --------- Run | Yrd Mat Min Sub Total 2314 | 51 671 458 1134 Wait 104 | 1 16 11 76 Move 2039 | 41 584 433 981 Hop . | . . . . Pick Up 36 | 1 16 3 16 Fast Attach 7 | 7 . . . Attach 2 | . . . 2 Detach . | . . . . Swap 32 | . 12 1 19 Drop 25 | . 11 1 13 Fire 54 | 1 30 5 18 Melee 13 | . . 4 9 Ram . | . . . . Kick . | . . . . Crush 2 | . 2 . . Escape Stasis . | . . . . Rewire . | . . . . Trap . | . . . . Miscellaneous . | . . . . Route ------- -11/Scrapyard -10/Materials (discovered 3 exits: *Mat / [*Min x2]) -10/Mines (discovered 3 exits: *Mat x2 / *Sub) -10/Subcaves (discovered 2 exits: [*Mat x2]) History --------- Turn | Location | Event 11 | -11/Scrapyard | Discovered new exit (range 16) 79 | -11/Scrapyard | Entered Materials 89 | -10/Materials | Central database locked down 248 | -10/Materials | Discovered new exit (range 13) 308 | -10/Materials | Learned 4 Recycling zone layouts 315 | -10/Materials | Build established: Mutant 354 | -10/Materials | Learned location of 1 exit from Storage 389 | -10/Materials | Learned 2 Storage zone layouts 425 | -10/Materials | Learned location of 2 exits from Mines 426 | -10/Materials | Learned location of Recycling (-7) 461 | -10/Materials | Learned Storage terminal intel 493 | -10/Materials | Loaded intel: 8 trap records 637 | -10/Materials | Discovered new exit (range 16) 736 | -10/Materials | Discovered new exit (range 5) 1338 | -10/Materials | Entered Mines 1339 | -10/Mines | Identified exit to Materials 1339 | -10/Mines | Identified exit to Subcaves 1350 | -10/Mines | Assisted by bots powering up and referring to "LRC-V3" 1393 | -10/Mines | Discovered exit to Materials (range 10) 1492 | -10/Mines | Learned 8 Materials zone layouts 2071 | -10/Mines | Entered Subcaves 2071 | -10/Subcaves | Accompanied by 3 allies 2089 | -10/Subcaves | Learned location of Storage (-7) 2097 | -10/Subcaves | Learned Materials terminal intel 2532 | -10/Subcaves | Core integrity fell below 50% 2744 | -10/Subcaves | A swath of the cavern ceiling suddenly collapsed 3078 | -10/Subcaves | Shifting Twisted Machinery released Sub. Optics 3081 | -10/Subcaves | Shifting Twisted Machinery released Battle Cannon 3251 | -10/Subcaves | Discovered new exit (range 9) 3325 | -10/Subcaves | Shifting Twisted Machinery released Barrage Gun 3333 | -10/Subcaves | A swath of the cavern ceiling suddenly collapsed 3338 | -10/Subcaves | Shifting Twisted Machinery released Barrage Gun 3451 | -10/Subcaves | Core integrity fell below 20% 3504 | -10/Subcaves | Discovered new exit (range 5) 3512 | -10/Subcaves | Visited Clippyterm 3516 | -10/Subcaves | Learned location of Deep Caves (-6) 3734 | -10/Subcaves | Disturbed a concealed Subdweller 3742 | -10/Subcaves | Destroyed by XQ-QJ9(R) with Subdweller Laser Last Messages --------------- >>Record "Early Bird" It looks like you're searching for a worm, right? Don't bother with early when it comes to the Lifeworm, it's never early, but by some measures it might be just in time... 03577_ Acquired Lrg. Storage Unit. 03578_ Dropped Lrg. Storage Unit. 03622_ LL-JHW(R) destroyed. 03624_ H8-OFA(R) destroyed. 03631_ The unstable cave ceiling collapses. 03635_ Acquired 21 matter. 03636_ Acquired 22 matter. 03638_ Acquired Sub. Power Source. 03640_ The unstable cave ceiling collapses. 03640_ Sub. Power Source crushed. 03733_ Searching scrap... 03733_ Found Sub. Monowheel. 03733_ Found Sub. Beam Cannon. 03733_ Found 52 Matter. 03734_ XQ-QJ9(R) angrily emerges from the Twisted Machinery. 03734_ Acquired 52 matter. Map ----- +----------------------------------------------------+ | ???????##""" " ### #??? #?????????????? | | ????????#" # # #???? ####?????????????? | | ????????#"" # ####???? ?????????????????? | | ??#####?## [ # ## #????? ????????????????? | | ??#"""#??##"""" ! ##????? ????????????????? | | ??#"""##?##"""## ! ##????? #????????????????? | | ??# " ### ### ###?????# #????????????????? | | ??#"" ## # ## ####### ?????????????????? | | ??#" ## " ?????????????????? | | ?## #### """ ???????????????????? | | ?#" ###### "#"#????????????????????? | | ?## "# # ""#????##??????????????? | | ??# " " # " #??? "#??????????????? | | ??#" " # "### "#??????????????? | | ??# " ## ##### #"" """" "???????????????? | | ??## #####???## #### #" "#???????????????? | | ???###????????#######?## # "##???????????????? | | ??????????????????????# """""#????????????????? | | ??????????????????????## ### #????????????????? | | ??????????????????????## #????????????????????? | | ??????????????????????# #????????????????????? | | ?????????????????????## #????????????????????? | | ?????????????????????# ##???????????????????? | | ?????????????????????# ##??????????????????? | | ?????????????????????## ##?????????????????? | | ??????????????????????# @ ##????????????????? | | ????????????????????### #????????????????? | | ???????????????#??### ##????????????????? | | ???????????????# # #< #?????????????????? | | ????????????????# ]= R #?????????????????? | | ???????????????#$&<##< ###?????????????????? | | ???????????????##$## #???????????????????? | | ????????????????##?### ##???????????????????? | | ????????????????????? ##????????????????????? | | ???????????????????? ##?????????????????????? | | ???????????????????? ###??????????????????????? | | ???????????????????# ?????????????????????????? | | ??????????????????? ?????????????????????????? | | ??????????????????? ??????????????????????????? | | ??????????????????# ??????????????????????????? | | ??????????????????#???????????????????????????? | | ??????????????????????????????????????????????? | | ??????????????????????????????????????????????? | | ??????????????????????????????????????????????? | | ??????????????????????????????????????????????? | | ??????????????????????????????????????????????? | | ??????????????????????????????????????????????? | | ??????????????????????????????????????????????? | | ??????????????????????????????????????????????? | | ??????????????????????????????????????????????? | +----------------------------------------------------+ Best States ------------- Heat Dissipation 25 Energy Generation 14 Energy Capacity 250 Matter Stores 300 Matter Capacity 300 Sight Range 16 Terrain Scan Density 10 Armor Coverage 100 Evasion (%) 40 Targeting Accuracy 5 Recoil Reduction 2 Item Schematics ----------------- None Robot Schematics ------------------ None Fabricated ------------ Nothing Alien Tech Used ----------------- None Achievements -------------- None Challenges ------------ None Game ------ Seed ContainmentImpulseMinigun Manual? 0 Play Time 00:24:29 Cumulative 143.9 hours Start 2024.08.27 @ 20:51:07 End 2024.08.27 @ 21:16:23 Sessions 1 Manual Loads 0 Difficulty Rogue Special Mode None Game No. 114 Rogue 114 Adventurer 0 Explorer 0 Win Type - Total 0 Types 0/0/0/0/0/0/0/0/0 Lore% 58 Gallery% 64 Achievement% 48 Wizard Run 0 Options --------- Layout 2 ASCII 0 Keyboard 1 Movement Vi Keybinds 0 Fullscreen 1 Font 32/SmallcapsGlow Map View 77x44 Zoom Use 0% Tactical HUD 1 Map Filters NONE Filters NONE Steam 1 RUN: 97edd1a4-ad70-4244-bf05-7e9b21b08d01